fUST/lending_fUST_20260504
["ID","MTS","AMOUNT","RATE_DAILY","PERIOD"]
[421557819,1777879832000,-300.0,0.00011711,2]
[421557820,1777879832000,-300.0,0.00011711,2]
[421557823,1777879832000,-300.0,0.00011711,2]
[421557827,1777879832000,-300.0,0.00011711,2]
[421557835,1777879832000,-300.0,0.00011711,2]
[421557831,1777879832000,-300.0,0.00011711,2]
[421557816,1777879832000,-300.0,0.00011711,2]
[421557833,1777879832000,-300.0,0.00011711,2]
[421557806,1777879832000,-300.0,0.00010903,2]
[421557786,1777879832000,-4158.64247836,0.00010173,2]
[421557801,1777879832000,-252.03343768,0.0001038,2]
[421557814,1777879832000,-300.0,0.00011711,2]
[421557812,1777879832000,-300.0,0.00011711,2]
[421557810,1777879832000,-1680.0,0.00011417,2]
[421557799,1777879832000,-1200.0,0.00010379,2]
[421557788,1777879832000,-477.238774,0.00010276,2]
[421557841,1777879832000,-300.0,0.00011711,2]
[421557789,1777879832000,-294.0,0.00010379,2]
[421557797,1777879832000,-300.0,0.00010379,2]
[421557784,1777879832000,-841.35752164,0.00010173,2]
[421557803,1777879832000,-565.0,0.0001038,2]
[421557839,1777879832000,-300.0,0.00011711,2]
[421557825,1777879832000,-300.0,0.00011711,2]
[421557873,1777879832000,-276.2065486,0.00012278,2]
[421557879,1777879832000,-500.0,0.00012278,2]
[421557883,1777879832000,-205.37847032,0.00012278,2]
[421557877,1777879832000,-500.0,0.00012278,2]
[421557875,1777879832000,-500.0,0.00012278,2]
[421557881,1777879832000,-500.0,0.00012278,2]
[421557829,1777879832000,-300.0,0.00011711,2]
[421557871,1777879832000,-500.0,0.00012278,2]
[421557868,1777879832000,-500.0,0.00012278,2]
[421557866,1777879832000,-500.0,0.00012278,2]
[421557853,1777879832000,-239.54857142,0.00012278,2]
[421557855,1777879832000,-500.0,0.00012278,2]
[421557869,1777879832000,-500.0,0.00012278,2]
[421557863,1777879832000,-500.0,0.00012278,2]
[421557837,1777879832000,-300.0,0.00011711,2]
[421557843,1777879832000,-416.842,0.00011878,2]
[421557861,1777879832000,-500.0,0.00012278,2]
[421557847,1777879832000,-500.0,0.00012,2]
[421557857,1777879832000,-500.0,0.00012278,2]
[421557845,1777879832000,-187.41871153,0.00011878,2]
[421557859,1777879832000,-500.0,0.00012278,2]
[421557851,1777879832000,-497.03192913,0.00012277,2]
[421557865,1777879832000,-500.0,0.00012278,2]
[421557849,1777879832000,-497.03192916,0.00012276,2]
[421557932,1777879833000,-500.0,0.00012278,2]
[421557927,1777879833000,-500.0,0.00012278,2]
[421557936,1777879833000,-500.0,0.00012278,2]
[421557929,1777879833000,-500.0,0.00012278,2]
[421557934,1777879833000,-500.0,0.00012278,2]
[421557947,1777879833000,-500.0,0.00012278,2]
[421557949,1777879833000,-500.0,0.00012278,2]
[421557945,1777879833000,-500.0,0.00012278,2]
[421557943,1777879833000,-500.0,0.00012278,2]
[421557941,1777879833000,-500.0,0.00012278,2]
[421557939,1777879833000,-500.0,0.00012278,2]
[421557925,1777879833000,-294.62152968,0.00012278,2]
[421557937,1777879833000,-500.0,0.00012278,2]
[421557951,1777879833000,-500.0,0.00012278,2]
[421557978,1777879833000,-26977.00763671,0.00012279,2]
[421557963,1777879833000,-500.0,0.00012278,2]
[421557980,1777879833000,-63764.62511424,0.00012279,2]
[421557976,1777879833000,-497.03192913,0.00012278,2]
[421557972,1777879833000,-500.0,0.00012278,2]
[421557959,1777879833000,-500.0,0.00012278,2]
[421557961,1777879833000,-500.0,0.00012278,2]
[421557974,1777879833000,-171.27276966,0.00012278,2]
[421557964,1777879833000,-500.0,0.00012278,2]
[421557968,1777879833000,-500.0,0.00012278,2]
[421557955,1777879833000,-500.0,0.00012278,2]
[421557966,1777879833000,-500.0,0.00012278,2]
[421557970,1777879833000,-500.0,0.00012278,2]
[421557957,1777879833000,-500.0,0.00012278,2]
[421557953,1777879833000,-500.0,0.00012278,2]
[421558152,1777879838000,-6301.53030903,0.00012279,2]
[421558153,1777879838000,-384.9201,0.00012279,2]
[421558193,1777879843000,-3370.60754432,0.00012277,2]
[421558195,1777879844000,-256.2,0.00012277,2]
[421558194,1777879844000,-1240.0,0.00012277,2]
[421558220,1777879847000,-442.72637736,0.00012154,2]
[421558218,1777879847000,-6455.12736062,0.00012277,2]
[421558236,1777880971000,2299.245,0.00021917,120]
[421558272,1777881031000,-269.08724583,8.296e-05,2]
[421558289,1777881031000,-1449.29635096,8.296e-05,2]
[421558293,1777881031000,-2365.65362458,8.296e-05,2]
[421558297,1777881031000,-862.59041789,8.38e-05,2]
[421558295,1777881031000,-2242.38359679,8.38e-05,2]
[421558408,1777881037000,-433.46696923,8.464e-05,2]
[421558406,1777881037000,-538.0,8.38e-05,2]
[421558404,1777881037000,-1895.02598532,8.38e-05,2]
[421558475,1777881038000,-500.0,0.00011964,2]
[421558463,1777881038000,-168.22903475,0.000119,2]
[421558474,1777881038000,-500.0,0.00011964,2]
[421558464,1777881038000,-500.0,0.00011964,2]
[421558462,1777881038000,-198.81277166,0.00011867,2]
[421558455,1777881038000,-377.6284794,0.00010959,2]
[421558458,1777881038000,-200.0,0.0001179,2]
[421558460,1777881038000,-201.18041219,0.0001179,2]
[421558443,1777881038000,-252.91646329,8.639e-05,2]
[421558440,1777881038000,-751.69661939,8.5e-05,7]
[421558435,1777881038000,-300.0,8.499e-05,2]
[421558449,1777881038000,-307.0,0.00010284,2]
[421558446,1777881038000,-420.0,9.349e-05,2]
[421558433,1777881038000,-300.0,8.499e-05,2]
[421558437,1777881038000,-148.62465508,8.5e-05,7]
[421558431,1777881038000,-766.53303077,8.464e-05,2]
[421558476,1777881038000,-517.54592243,0.00011964,2]
[421558452,1777881038000,-298.44142669,0.00010638,2]
[421558465,1777881038000,-500.0,0.00011964,2]
[421558477,1777881038000,-516.23983326,0.00011964,2]
[421558473,1777881038000,-500.0,0.00011964,2]
[421558467,1777881038000,-574.58586329,0.00011964,2]
[421558481,1777881038000,-500.0,0.00011964,2]
[421558486,1777881038000,-500.0,0.00011964,2]
[421558482,1777881038000,-500.0,0.00011964,2]
[421558488,1777881038000,-586.70767595,0.00011964,2]
[421558478,1777881038000,-500.0,0.00011964,2]
[421558485,1777881038000,-500.0,0.00011964,2]
[421558480,1777881038000,-500.0,0.00011964,2]
[421558484,1777881038000,-527.62065486,0.00011964,2]
[421558483,1777881038000,-500.0,0.00011964,2]
[421558487,1777881038000,-500.0,0.00011964,2]
[421558468,1777881038000,-500.0,0.00011964,2]
[421558470,1777881038000,-500.0,0.00011964,2]
[421558466,1777881038000,-500.0,0.00011964,2]
[421558472,1777881038000,-500.0,0.00011964,2]
[421558469,1777881038000,-500.0,0.00011964,2]
[421558471,1777881038000,-500.0,0.00011964,2]
[421558479,1777881038000,-500.0,0.00011964,2]
[421558618,1777881045000,-198.81277165,0.00011869,2]
[421558619,1777881046000,-72.11493313,0.0001187,2]
[421558621,1777881412000,216.99442836,0.00017929,120]
[421558626,1777881674000,-1902.8473405,0.00010952,2]
[421558643,1777882086000,-1239.5271008,0.0001052,2]
[421558644,1777882086000,-568.0,0.0001052,2]
[421558645,1777882086000,-2268.80286549,0.00010526,2]
[421558647,1777882100000,-4728.04710298,0.00010627,2]
[421558697,1777882231000,-1022.87941089,0.00011125,2]
[421558700,1777882231000,-210.08312377,0.00011651,2]
[421558699,1777882231000,-569.6743926,0.00011651,2]
[421558693,1777882231000,-255.20915013,0.00010788,2]
[421558695,1777882231000,-571.0,0.00010788,2]
[421558705,1777882231000,-300.0,0.00011654,2]
[421558720,1777882231000,-2515.37887852,0.00011655,2]
[421558706,1777882231000,-300.0,0.00011654,2]
[421558708,1777882231000,-300.0,0.00011654,2]
[421558711,1777882231000,-1200.0,0.00011654,2]
[421558702,1777882231000,-508.0,0.00011654,2]
[421558717,1777882231000,-1204.23062129,0.00011655,2]
[421558703,1777882231000,-300.0,0.00011654,2]
[421558713,1777882231000,-3263.86390785,0.00011655,2]
[421558880,1777882240000,-440.84749471,0.00011654,2]
[421558878,1777882240000,-236.33357134,0.00011654,2]
[421558884,1777882240000,-500.0,0.00011654,2]
[421558881,1777882240000,-59.15250529,0.00011654,2]
[421558879,1777882240000,-263.66642866,0.00011654,2]
[421558885,1777882240000,-500.0,0.00011654,2]
[421558871,1777882240000,-239.54857142,0.00011654,2]
[421558877,1777882240000,-500.0,0.00011654,2]
[421558870,1777882240000,-500.0,0.00011654,2]
[421558874,1777882240000,-237.83060461,0.00011654,2]
[421558868,1777882240000,-500.0,0.00011654,2]
[421558873,1777882240000,-500.0,0.00011654,2]
[421558882,1777882240000,-500.0,0.00011654,2]
[421558875,1777882240000,-426.26543722,0.00011654,2]
[421558883,1777882240000,-500.0,0.00011654,2]
[421558895,1777882240000,-500.0,0.00011656,2]
[421558887,1777882240000,-440.48545854,0.00011654,2]
[421558886,1777882240000,-59.51454146,0.00011654,2]
[421558899,1777882240000,-500.0,0.00011656,2]
[421558901,1777882240000,-6006.88351959,0.00011657,2]
[421558898,1777882240000,-500.0,0.00011656,2]
[421558894,1777882240000,-500.0,0.00011656,2]
[421558897,1777882240000,-500.0,0.00011656,2]
[421558900,1777882240000,-43169.26240982,0.00011657,2]
[421558892,1777882240000,-500.0,0.00011656,2]
[421558893,1777882240000,-500.0,0.00011656,2]
[421558889,1777882240000,-183.20802429,0.00011656,2]
[421558891,1777882240000,-500.0,0.00011656,2]
[421558890,1777882240000,-500.0,0.00011656,2]
[421558896,1777882240000,-348.99514814,0.00011656,2]
[421558888,1777882240000,-463.78319557,0.00011656,2]
[421558919,1777882243000,-32549.30595639,0.00011657,2]
[421558959,1777882246000,-24964.22195333,0.00011657,2]
[421559052,1777883432000,-300.0,0.00010535,2]
[421559056,1777883432000,-163.41930473,0.00010535,2]
[421559051,1777883432000,-300.0,0.00010535,2]
[421559048,1777883432000,-300.0,0.00010535,2]
[421559058,1777883432000,-600.0,0.00010745,2]
[421559054,1777883432000,-300.0,0.00010535,2]
[421559053,1777883432000,-300.0,0.00010535,2]
[421559057,1777883432000,-136.58069527,0.00010535,2]
[421559050,1777883432000,-300.0,0.00010535,2]
[421559055,1777883432000,-300.0,0.00010535,2]
[421559049,1777883432000,-300.0,0.00010535,2]
[421559031,1777883432000,-162.60014945,0.00010226,2]
[421559046,1777883432000,-300.0,0.00010535,2]
[421559042,1777883432000,-300.0,0.00010535,2]
[421559040,1777883432000,-300.0,0.00010535,2]
[421559036,1777883432000,-261.33033404,0.00010381,2]
[421559034,1777883432000,-1200.0,0.00010328,2]
[421559044,1777883432000,-300.0,0.00010535,2]
[421559033,1777883432000,-300.0,0.00010328,2]
[421559029,1777883432000,-5000.0,0.00010124,2]
[421559038,1777883432000,-300.0,0.00010535,2]
[421559064,1777883432000,-303.67744803,0.00011446,2]
[421559047,1777883432000,-300.0,0.00010535,2]
[421559060,1777883432000,-365.36325111,0.00011357,2]
[421559083,1777883432000,-720.0,0.00011819,2]
[421559062,1777883432000,-194.99638826,0.00011361,2]
[421559059,1777883432000,-456.2418086,0.00011307,2]
[421559086,1777883432000,-162.380719,0.00011959,2]
[421559087,1777883432000,-537.6845,0.00011959,2]
[421559082,1777883432000,-500.0,0.00011817,2]
[421559080,1777883432000,-155.0,0.0001176,2]
[421559085,1777883432000,-294.81851083,0.00011959,2]
[421559084,1777883432000,-1663.03748917,0.00011959,2]
[421559081,1777883432000,-500.0,0.0001177,2]
[421559075,1777883432000,-151.0,0.00011551,2]
[421559074,1777883432000,-151.0,0.00011551,2]
[421559072,1777883432000,-151.0,0.00011551,2]
[421559088,1777883432000,-73.55930857,0.00011959,2]
[421559078,1777883432000,-151.0,0.00011551,2]
[421559068,1777883432000,-151.0,0.00011551,2]
[421559076,1777883432000,-151.0,0.00011551,2]
[421559070,1777883432000,-151.0,0.00011551,2]
[421559067,1777883432000,-151.0,0.00011551,2]
[421559069,1777883432000,-151.0,0.00011551,2]
[421559066,1777883432000,-187.41871153,0.00011546,2]
[421559065,1777883432000,-494.511,0.00011546,2]
[421559061,1777883432000,-54.63674889,0.00011357,2]
[421559063,1777883432000,-1485.00361174,0.00011361,2]
[421559071,1777883432000,-151.0,0.00011551,2]
[421559164,1777883443000,-760.69687761,0.00011537,2]
[421559159,1777883443000,-1246.62269966,0.00011537,2]
[421559161,1777883443000,-7517.35120652,0.00011537,2]
[421559202,1777883444000,2536.75985344,0.0001,2]
[421559237,1777883446000,-90475.32921621,0.00011537,2]
[421559241,1777883446000,-500.0,0.00011538,2]
[421559236,1777883446000,-366.08748706,0.0001,2]
[421559239,1777883446000,-500.0,0.00011538,2]
[421559238,1777883446000,-582.0,0.00011538,2]
[421559240,1777883446000,-500.0,0.00011538,2]
[421559244,1777883446000,-597.07861053,0.00011538,2]
[421559242,1777883446000,-500.0,0.00011538,2]
[421559247,1777883446000,-500.0,0.00011538,2]
[421559245,1777883446000,-500.0,0.00011538,2]
[421559243,1777883446000,-500.0,0.00011538,2]
[421559248,1777883446000,-213.11365582,0.00011538,2]
[421559249,1777883446000,-500.0,0.00011538,2]
[421559246,1777883446000,-500.0,0.00011538,2]
[421559251,1777883447000,-500.0,0.00011538,2]
[421559250,1777883447000,-500.0,0.00011538,2]
[421559252,1777883447000,-500.0,0.00011538,2]
[421559254,1777883447000,-77.44069143,0.00011959,2]
[421559256,1777883447000,-100.48573016,0.00011959,2]
[421559255,1777883447000,-163.10466013,0.00011959,2]
[421559253,1777883447000,-500.0,0.00011538,2]
[421559397,1777884632000,-537.6845,0.00011642,2]
[421559358,1777884632000,-325.1505712,0.00011298,2]
[421559364,1777884632000,-159.0,0.000115,2]
[421559362,1777884632000,-12065.7267476,0.00011414,2]
[421559368,1777884632000,-242.94195841,0.00011554,2]
[421559366,1777884632000,-159.0,0.000115,2]
[421559370,1777884632000,-500.0,0.00011641,2]
[421559372,1777884632000,-388.06788381,0.00011641,2]
[421559374,1777884632000,-500.0,0.00011641,2]
[421559380,1777884632000,-500.0,0.00011641,2]
[421559376,1777884632000,-500.0,0.00011641,2]
[421559384,1777884632000,-500.0,0.00011641,2]
[421559382,1777884632000,-500.0,0.00011641,2]
[421559383,1777884632000,-394.2966037,0.00011641,2]
[421559386,1777884632000,-500.0,0.00011641,2]
[421559388,1777884632000,-1957.856,0.00011642,2]
[421559394,1777884632000,-162.380719,0.00011642,2]
[421559390,1777884632000,-537.6845,0.00011642,2]
[421559378,1777884632000,-500.0,0.00011641,2]
[421559360,1777884632000,-325.6623219,0.00011298,2]
[421559356,1777884632000,-391.65897,0.00011298,2]
[421559348,1777884632000,-420.0,0.00011228,2]
[421559315,1777884632000,-992.89203693,0.00010005,2]
[421559313,1777884632000,-4007.10796307,0.00010005,2]
[421559317,1777884632000,-1200.0,0.00010106,2]
[421559321,1777884632000,-562.0,0.00010107,2]
[421559319,1777884632000,-3984.36896103,0.00010107,2]
[421559328,1777884632000,-495.34437066,0.00011057,2]
[421559334,1777884632000,-151.0,0.00011068,2]
[421559332,1777884632000,-151.0,0.00011068,2]
[421559354,1777884632000,-74.5347135,0.00011298,2]
[421559330,1777884632000,-566.34206784,0.00011057,2]
[421559325,1777884632000,-262.41096647,0.00010209,2]
[421559326,1777884632000,-242.94195844,0.00010967,2]
[421559323,1777884632000,-300.0,0.00010209,2]
[421559338,1777884632000,-151.0,0.00011068,2]
[421559342,1777884632000,-155.191132,0.00011068,2]
[421559339,1777884632000,-151.0,0.00011068,2]
[421559345,1777884632000,-187.0,0.00011117,2]
[421559351,1777884632000,-151.0,0.00011298,2]
[421559336,1777884632000,-151.595466,0.00011068,2]
[421559392,1777884632000,-445.202766,0.00011642,2]
[421559396,1777884632000,-175.69541903,0.00011642,2]
[421559401,1777884632000,-2150.738,0.00011642,2]
[421559445,1777884632000,-288.8177782,0.0001212,2]
[421559443,1777884632000,-456.2076372,0.0001212,2]
[421559446,1777884632000,-327.4208118,0.00012122,2]
[421559460,1777884632000,-151.0,0.00012177,2]
[421559462,1777884632000,-151.0,0.00012177,2]
[421559453,1777884632000,-151.0,0.00012149,2]
[421559451,1777884632000,-151.0,0.00012149,2]
[421559455,1777884632000,-282.27296612,0.00012149,2]
[421559449,1777884632000,-177.78,0.00012145,2]
[421559464,1777884632000,-155.13577,0.00012177,2]
[421559468,1777884632000,-557.5788265,0.0001219,2]
[421559471,1777884632000,-300.0,0.00012197,2]
[421559473,1777884632000,-181.3,0.00012209,2]
[421559469,1777884632000,-2230.315306,0.0001219,2]
[421559459,1777884632000,-151.0,0.00012177,2]
[421559457,1777884632000,-9670.11475888,0.00012177,2]
[421559475,1777884632000,-309.64494044,0.0001221,2]
[421559477,1777884632000,-191.95,0.00012223,2]
[421559399,1777884632000,-151.18748212,0.00011642,2]
[421559439,1777884632000,-455.074182,0.0001212,2]
[421559447,1777884632000,-242.94195841,0.00012142,2]
[421559466,1777884632000,-461.67526834,0.0001219,2]
[421559438,1777884632000,-500.0,0.00012081,2]
[421559404,1777884632000,-557.5788265,0.00011697,2]
[421559441,1777884632000,-456.2076372,0.0001212,2]
[421559406,1777884632000,-2105.41764886,0.00011752,2]
[421559403,1777884632000,-2030.296672,0.00011697,2]
[421559408,1777884632000,-578.20924308,0.00011752,2]
[421559412,1777884632000,-2183.31810187,0.00011807,2]
[421559421,1777884632000,-159.0,0.000119,2]
[421559410,1777884632000,-500.0,0.00011791,2]
[421559416,1777884632000,-500.0,0.00011807,2]
[421559414,1777884632000,-599.60298507,0.00011807,2]
[421559419,1777884632000,-621.78829552,0.00011862,2]
[421559425,1777884632000,-2347.87260389,0.00011917,2]
[421559423,1777884632000,-160.00623615,0.000119,2]
[421559426,1777884632000,-644.79446246,0.00011917,2]
[421559428,1777884632000,-173.76,0.00011965,2]
[421559432,1777884632000,-668.65185757,0.00011972,2]
[421559430,1777884632000,-2434.74389024,0.00011972,2]
[421559417,1777884632000,-2264.10087164,0.00011862,2]
[421559434,1777884632000,-1259.38781025,0.00012027,2]
[421559436,1777884632000,-693.3919763,0.00012027,2]
[421559554,1777884633000,-167.0,0.00012348,2]
[421559564,1777884633000,-151.0,0.00012664,2]
[421559552,1777884633000,-155.0,0.00012348,2]
[421559550,1777884633000,-151.0,0.00012298,2]
[421559548,1777884633000,-151.0,0.00012298,2]
[421559560,1777884633000,-151.0,0.00012392,2]
[421559544,1777884633000,-151.0,0.00012281,2]
[421559559,1777884633000,-399.36,0.00012389,2]
[421559557,1777884633000,-600.0,0.00012364,2]
[421559546,1777884633000,-151.0,0.00012281,2]
[421559563,1777884633000,-151.0,0.00012664,2]
[421559566,1777884633000,-10920.96308153,0.0001272,2]
[421559581,1777884633000,-185.0,0.00012743,2]
[421559579,1777884633000,-442.0,0.00012743,2]
[421559568,1777884633000,-481.65005128,0.00012723,2]
[421559601,1777884633000,-152.0,0.00012806,7]
[421559575,1777884633000,-517.7901735,0.00012738,2]
[421559573,1777884633000,-328.2445335,0.00012738,2]
[421559577,1777884633000,-2312.83697232,0.00012738,2]
[421559584,1777884633000,-173.61,0.00012806,7]
[421559582,1777884633000,-173.61,0.00012806,7]
[421559586,1777884633000,-173.61,0.00012806,7]
[421559588,1777884633000,-173.61,0.00012806,7]
[421559542,1777884633000,-500.0,0.00012273,2]
[421559570,1777884633000,-242.94195841,0.00012729,2]
[421559539,1777884633000,-500.0,0.00012273,2]
[421559492,1777884633000,-461.27161685,0.00012249,2]
[421559537,1777884633000,-500.0,0.00012273,2]
[421559479,1777884633000,-500.0,0.00012249,2]
[421559490,1777884633000,-500.0,0.00012249,2]
[421559486,1777884633000,-500.0,0.00012249,2]
[421559488,1777884633000,-500.0,0.00012249,2]
[421559485,1777884633000,-500.0,0.00012249,2]
[421559483,1777884633000,-500.0,0.00012249,2]
[421559481,1777884633000,-500.0,0.00012249,2]
[421559494,1777884633000,-500.0,0.00012249,2]
[421559498,1777884633000,-500.0,0.00012249,2]
[421559500,1777884633000,-413.90354769,0.00012249,2]
[421559496,1777884633000,-500.0,0.00012249,2]
[421559541,1777884633000,-500.0,0.00012273,2]
[421559502,1777884633000,-151.5,0.00012249,2]
[421559516,1777884633000,-236.94611125,0.00012249,2]
[421559504,1777884633000,-151.5,0.00012249,2]
[421559520,1777884633000,-151.5,0.00012249,2]
[421559518,1777884633000,-500.0,0.00012249,2]
[421559525,1777884633000,-156.92273008,0.00012249,2]
[421559529,1777884633000,-500.0,0.00012249,2]
[421559531,1777884633000,-167.5092632,0.00012249,2]
[421559527,1777884633000,-500.0,0.00012249,2]
[421559523,1777884633000,-500.0,0.00012249,2]
[421559533,1777884633000,-151.5,0.00012249,2]
[421559535,1777884633000,-500.0,0.00012273,2]
[421559514,1777884633000,-151.5,0.00012249,2]
[421559603,1777884633000,-152.0,0.00012806,7]
[421559611,1777884633000,-173.61,0.0001281,7]
[421559605,1777884633000,-152.0,0.00012806,7]
[421559631,1777884633000,-152.0,0.0001281,7]
[421559633,1777884633000,-152.0,0.0001281,7]
[421559635,1777884633000,-152.0,0.0001281,7]
[421559636,1777884633000,-152.0,0.0001281,7]
[421559641,1777884633000,-173.61,0.00012814,7]
[421559637,1777884633000,-152.0,0.0001281,7]
[421559639,1777884633000,-173.61,0.00012814,7]
[421559640,1777884633000,-173.61,0.00012814,7]
[421559638,1777884633000,-173.61,0.00012814,7]
[421559642,1777884633000,-173.61,0.00012814,7]
[421559643,1777884633000,-162.38,0.00012814,7]
[421559630,1777884633000,-152.0,0.0001281,7]
[421559634,1777884633000,-152.0,0.0001281,7]
[421559646,1777884633000,-162.38,0.00012814,7]
[421559649,1777884633000,-152.0,0.00012814,7]
[421559648,1777884633000,-152.0,0.00012814,7]
[421559650,1777884633000,-152.0,0.00012814,7]
[421559656,1777884633000,-1000.0,0.00012821,2]
[421559652,1777884633000,-1000.0,0.00012821,2]
[421559651,1777884633000,-152.0,0.00012814,7]
[421559655,1777884633000,-1000.0,0.00012821,2]
[421559645,1777884633000,-162.38,0.00012814,7]
[421559653,1777884633000,-848.55723625,0.00012821,2]
[421559654,1777884633000,-1000.0,0.00012821,2]
[421559644,1777884633000,-162.38,0.00012814,7]
[421559626,1777884633000,-162.38,0.0001281,7]
[421559647,1777884633000,-162.38,0.00012814,7]
[421559628,1777884633000,-162.38,0.0001281,7]
[421559629,1777884633000,-162.38,0.0001281,7]
[421559607,1777884633000,-151.0,0.00012806,2]
[421559597,1777884633000,-162.38,0.00012806,7]
[421559590,1777884633000,-173.61,0.00012806,7]
[421559609,1777884633000,-173.61,0.0001281,7]
[421559599,1777884633000,-162.38,0.00012806,7]
[421559593,1777884633000,-162.38,0.00012806,7]
[421559595,1777884633000,-162.38,0.00012806,7]
[421559598,1777884633000,-162.38,0.00012806,7]
[421559612,1777884633000,-173.61,0.0001281,7]
[421559616,1777884633000,-173.61,0.0001281,7]
[421559614,1777884633000,-173.61,0.0001281,7]
[421559604,1777884633000,-152.0,0.00012806,7]
[421559613,1777884633000,-173.61,0.0001281,7]
[421559625,1777884633000,-162.38,0.0001281,7]
[421559618,1777884633000,-173.61,0.0001281,7]
[421559627,1777884633000,-162.38,0.0001281,7]
[421559624,1777884633000,-162.38,0.0001281,7]
[421559623,1777884633000,-162.38,0.0001281,7]
[421559622,1777884633000,-162.38,0.0001281,7]
[421559632,1777884633000,-152.0,0.0001281,7]
[421559617,1777884633000,-173.61,0.0001281,7]
[421559619,1777884633000,-173.61,0.0001281,7]
[421559615,1777884633000,-173.61,0.0001281,7]
[421559620,1777884633000,-162.38,0.0001281,7]
[421559621,1777884633000,-162.38,0.0001281,7]
[421559665,1777884634000,-256.58653331,0.00013011,2]
[421559659,1777884634000,-155.0,0.00012936,2]
[421559662,1777884634000,-456.2076372,0.00012944,2]
[421559657,1777884634000,-2406.9874429,0.000129,2]
[421559663,1777884634000,-151.0,0.00012944,2]
[421559660,1777884634000,-151.0,0.00012942,2]
[421559664,1777884634000,-500.0,0.00013,2]
[421559658,1777884634000,-2406.98744285,0.000129,2]
[421559668,1777884634000,-285.94924944,0.000131,2]
[421559661,1777884634000,-152.0944082,0.00012944,2]
[421559666,1777884634000,-14531.3354519,0.000131,2]
[421559667,1777884634000,-635.16775901,0.000131,2]
[421559699,1777884640000,-4052.64258996,0.00011056,2]
[421559701,1777884641000,-831.71238038,0.00011056,2]
[421559700,1777884641000,-1325.85479911,0.00011056,2]
[421559721,1777884643000,-4895.9349,0.00011056,2]
[421559720,1777884643000,-5612.53484895,0.00011056,2]
[421559747,1777884646000,-1138.83088821,0.00011056,2]
[421559748,1777884646000,-446.35337368,0.00011056,2]
[421559757,1777884646000,-540.92371165,0.00011056,2]
[421559764,1777884646000,-337.2,0.00011056,2]
[421559766,1777884646000,-64384.96069837,0.00011056,2]
[421559762,1777884646000,-7555.21288691,0.00011056,2]
[421559776,1777884647000,-5607.02618893,0.00011056,2]
[421559862,1777884939000,210.0,0.00021918,120]
[421559864,1777885031000,8000.0,0.000219,120]
[421559867,1777885236000,-5000.0,9.997e-05,2]
[421559868,1777885254000,-3709.80500921,0.0001001,2]
[421559871,1777885272000,-1290.19499079,0.0001001,2]
[421559874,1777885294000,-5000.0,9.91e-05,2]
[421559875,1777885312000,-560.0,0.0001001,2]
[421559876,1777885329000,-265.16619733,0.00010099,2]
[421559877,1777885347000,-219.89901431,0.0001142,2]
[421559878,1777885364000,-308.0,0.0001142,2]
[421559975,1777885832000,-2000.0,0.00012727,2]
[421559919,1777885832000,-425.71203433,0.0001121,2]
[421559939,1777885832000,-259.86287338,0.00011324,2]
[421559941,1777885832000,-5000.0,0.00011324,2]
[421559935,1777885832000,-300.0,0.00011323,2]
[421559973,1777885832000,-2000.0,0.00012727,2]
[421559933,1777885832000,-831.76838016,0.0001121,2]
[421559943,1777885832000,-822.33999343,0.00011878,2]
[421559945,1777885832000,-1915.17911743,0.00011978,2]